bitfinex/quotes_SOLUSD_20250525
["timestamp","ask_amount","ask_price","bid_price","bid_amount"]
[1748166100338,26.0,171.09,171.0,35.0]
[1748166100339,35.01303999,171.01,171.0,35.0]
[1748166100834,35.01303999,171.02,171.0,35.0]
[1748166101614,18.79181043,171.08,171.0,35.0]
[1748166101812,35.01303999,171.03,171.0,117.9]
[1748166103434,26.0,171.09,171.0,117.9]
[1748166103620,35.01303999,171.05,171.0,117.9]
[1748166103827,35.01303999,171.06,171.0,35.0]
[1748166104331,35.01303999,171.05,171.0,61.0]
[1748166106342,35.01303999,171.06,171.0,61.0]
[1748166107126,1.5522,171.1,171.0,61.0]
[1748166107322,35.01303999,171.06,171.0,61.0]
[1748166107544,35.01303999,171.06,171.01,124.58]
[1748166107839,35.01303999,171.06,171.01,40.58]
[1748166108142,1.5522,171.1,171.03,26.0]
[1748166108445,35.01303999,171.08,171.04,26.0]
[1748166108743,35.01303999,171.08,171.05,35.0]
[1748166109443,1.5522,171.1,171.05,35.0]
[1748166109649,35.01303999,171.11,171.05,35.0]
[1748166109848,35.01303999,171.1,171.05,35.0]
[1748166110544,1.5431,171.15,171.05,35.0]
[1748166110850,1.5431,171.15,171.06,18.64964886]
[1748166110851,35.01303999,171.14,171.06,18.64964886]
[1748166111144,35.01303999,171.14,171.05,35.0]
[1748166111145,35.01303999,171.13,171.05,35.0]
[1748166111317,1.5431,171.15,171.05,35.0]
[1748166111823,35.01303999,171.14,171.05,35.0]
[1748166112622,35.01303999,171.14,171.06,18.64964886]
[1748166113629,1.5431,171.15,171.06,18.64964886]
[1748166113836,1.5431,171.19,171.07,0.14216157]
[1748166114137,35.01303999,171.16,171.07,0.14216157]
[1748166115218,35.01303999,171.16,171.06,21.60839255]
[1748166115219,35.01303999,171.11,171.06,2.95874369]
[1748166115534,35.01303999,171.12,171.07,61.0]
[1748166115929,35.01303999,171.12,171.07,26.0]
[1748166116327,35.01303999,171.12,171.08,35.0]
[1748166116730,35.01303999,171.12,171.07,26.0]
[1748166116944,35.01303999,171.12,171.09,35.0]
[1748166117134,35.01303999,171.13,171.09,35.0]
[1748166117537,35.01303999,171.12,171.1,124.56]
[1748166117940,18.79181043,171.18,171.1,40.58]
[1748166118133,35.01303999,171.14,171.1,40.58]
[1748166118330,35.01303999,171.13,171.1,40.58]
[1748166119540,35.01303999,171.12,171.09,35.0]
[1748166119735,35.01303999,171.13,171.09,35.0]
[1748166119926,35.01303999,171.15,171.09,35.0]
[1748166120555,35.01303999,171.14,171.09,35.0]
[1748166121837,35.01303999,171.16,171.09,41.4468]
[1748166122145,35.01303999,171.15,171.09,67.4468]
[1748166123363,35.01303999,171.15,171.09,61.0]
[1748166124372,35.01303999,171.14,171.09,61.0]
[1748166124667,35.01303999,171.16,171.09,61.0]
[1748166124843,1.5431,171.19,171.09,280.1]
[1748166125157,35.01303999,171.18,171.09,280.1]
[1748166127648,35.01303999,171.18,171.1,123.92]
[1748166127959,1.5431,171.19,171.1,123.92]
[1748166127960,35.01303999,171.17,171.1,123.92]
[1748166128252,35.01303999,171.18,171.1,123.92]
[1748166128839,35.01303999,171.18,171.1,206.82]
[1748166129142,35.01303999,171.17,171.1,82.9]
[1748166129347,26.0,171.22,171.1,219.1]
[1748166129557,35.01303999,171.18,171.1,219.1]
[1748166129733,35.01303999,171.17,171.1,219.1]
[1748166130749,35.01303999,171.16,171.11,34.98]
[1748166130958,35.01303999,171.15,171.11,34.98]
[1748166131155,35.01303999,171.15,171.1,82.9]
[1748166131345,1.5563,171.17,171.07,154.84964886]
[1748166131346,35.01303999,171.13,171.07,82.9]
[1748166131550,35.01303999,171.09,171.04,82.9]
[1748166131755,21.87706623,171.07,171.05,34.98]
[1748166132261,21.87706623,171.09,171.05,34.98]
[1748166133745,35.00238745,171.08,171.05,34.98]
[1748166134844,35.00238745,171.09,171.05,34.98]
[1748166135265,35.00238745,171.08,171.05,34.98]
[1748166135761,35.00238745,171.09,171.05,34.98]
[1748166136063,26.0,171.14,171.05,34.98]
[1748166136266,35.00238745,171.11,171.05,117.88]
[1748166136471,35.00238745,171.1,171.05,117.88]
[1748166136768,26.0,171.14,171.05,117.88]
[1748166136769,35.00238745,171.09,171.05,117.88]
[1748166137571,35.00238745,171.09,171.06,123.92]
[1748166139780,35.00238745,171.08,171.06,123.92]
[1748166140241,35.00238745,171.07,171.01,82.9]
[1748166140442,35.00238745,171.06,171.02,34.98]
[1748166140740,35.00238745,171.06,170.99,82.9]
[1748166140944,35.00238745,171.06,170.79,17.515692]
[1748166140945,35.00238745,171.0,170.91,1.517]
[1748166141256,35.00238745,170.96,170.92,35.0]
[1748166142371,35.00238745,170.97,170.92,35.0]
[1748166143352,18.79181043,171.01,170.91,26.0]
[1748166143353,35.00238745,170.96,170.93,35.0]
[1748166143549,35.00238745,170.97,170.94,35.0]
[1748166144269,35.00238745,170.95,170.94,35.0]
[1748166147182,35.00238745,170.97,170.94,35.0]
[1748166147558,35.00238745,170.97,170.95,124.0]
[1748166148167,35.00238745,170.96,170.95,124.0]
[1748166148363,35.00238745,170.96,170.95,39.98]
[1748166148555,35.00238745,170.96,170.94,35.0]
[1748166148750,35.00238745,170.95,170.94,35.0]
[1748166151962,35.00238745,170.96,170.94,35.0]
[1748166152565,6.0507,171.04,170.94,35.0]
[1748166152784,35.00238745,171.01,170.94,117.9]
[1748166153659,21.8960298,171.01,170.94,117.9]
[1748166154666,1.593,171.07,170.94,124.375]
[1748166154883,21.8960298,171.06,170.94,262.1987]
[1748166155190,21.8960298,171.06,170.95,18.64964886]
[1748166155361,21.8960298,171.05,170.95,18.64964886]
[1748166155687,35.01846822,171.05,170.95,18.64964886]
[1748166155901,35.01846822,171.03,170.94,262.1987]
[1748166156061,35.01846822,171.02,170.94,262.1987]
[1748166156255,35.01846822,171.03,170.94,262.1987]
[1748166157480,35.01846822,171.02,170.97,26.0]
[1748166157687,0.14216157,171.06,170.97,26.0]
[1748166157688,35.01846822,171.0,170.98,35.02]
[1748166157898,18.79181043,171.06,170.98,117.92]
[1748166158090,35.01846822,171.01,170.98,117.92]
[1748166159164,35.01846822,170.99,170.98,82.9]
[1748166159370,35.01846822,170.99,170.98,117.92]
[1748166159583,35.01846822,171.02,170.98,117.92]
[1748166160077,35.01846822,171.0,170.98,117.92]
[1748166160267,35.01846822,171.02,170.98,117.92]
[1748166163695,35.01846822,171.02,170.98,82.9]
[1748166164096,35.01846822,171.01,170.99,35.02]
[1748166164477,35.01846822,171.01,170.98,82.9]
[1748166164677,35.01846822,171.01,170.99,35.02]
[1748166167100,35.01846822,171.01,170.93,162.2]
[1748166167101,35.01846822,171.0,170.93,82.9]
[1748166167282,35.01846822,170.98,170.94,35.02]
[1748166167475,35.01846822,170.98,170.95,123.58]
[1748166167682,35.01846822,170.99,170.95,123.58]
[1748166169104,35.01846822,170.98,170.95,123.58]
[1748166169296,35.01846822,170.97,170.95,123.58]
[1748166169892,35.05045543,170.97,170.95,123.58]
[1748166170488,35.05045543,170.98,170.95,123.58]
[1748166171908,35.05045543,170.98,170.96,35.02]
[1748166172613,35.05045543,170.97,170.96,35.02]
[1748166172793,35.05045543,170.97,170.95,84.02]
[1748166172981,35.05045543,170.97,170.96,74.58]
[1748166173512,35.05045543,170.98,170.96,74.58]
[1748166175412,35.05045543,170.97,170.96,74.58]
[1748166177113,35.05045543,170.98,170.96,74.58]
[1748166177713,21.90633231,170.98,170.96,74.58]
[1748166178992,1.5943,171.0,170.96,74.58]
[1748166178993,0.14216157,171.0,170.96,74.58]
[1748166179317,21.90633231,171.0,170.96,74.58]
[1748166180311,0.14216157,171.02,170.96,74.58]
[1748166180488,21.90633231,171.01,170.96,74.58]
[1748166180694,21.90633231,171.02,170.96,96.48633231]
[1748166181490,21.90633231,171.01,170.96,74.58]
[1748166183718,26.0,171.03,170.96,96.48633231]
[1748166183918,1.5315,171.04,170.98,21.90633231]
[1748166184087,23.43783231,171.04,170.99,35.02]
[1748166184507,21.90633231,171.03,170.99,35.02]
[1748166185513,21.90633231,171.02,170.99,35.02]
[1748166187038,1.5315,171.04,170.99,35.02]
[1748166187203,21.90633231,171.03,170.99,35.02]
[1748166187893,21.90633231,171.03,170.99,117.92]
[1748166188197,26.14216157,171.03,171.0,35.02]
[1748166188400,21.90633231,171.01,171.0,35.02]
[1748166188611,22.04849388,171.01,171.0,35.02]
[1748166189526,26.0,171.05,171.0,35.02]
[1748166189707,21.90633231,171.05,171.0,56.92633231]
[1748166190019,21.90633231,171.05,171.0,139.82633231]
[1748166190833,0.14216157,171.07,171.0,139.82633231]
[1748166191031,0.14216157,171.07,171.01,21.90633231]
[1748166191200,33.6668,171.08,171.02,39.36]
[1748166191402,0.14216157,171.06,171.03,35.02]
[1748166191707,22.04849388,171.04,171.03,35.02]
[1748166193625,21.90633231,171.04,171.03,35.02]
[1748166195320,21.90633231,171.04,171.03,119.04]
[1748166196626,22.04849388,171.04,171.03,119.04]
[1748166197497,0.14216157,171.06,171.03,119.04]
[1748166197698,21.90633231,171.04,171.03,119.04]
[1748166200523,0.14216157,171.06,171.03,119.04]
[1748166200830,21.90633231,171.05,171.03,119.04]
[1748166201429,21.90633231,171.04,171.03,119.04]
[1748166203408,0.14216157,171.06,171.03,119.04]
[1748166203706,21.90633231,171.04,171.03,119.04]
[1748166204834,21.90633231,171.05,171.03,119.04]
[1748166206823,27.80386157,171.08,171.03,119.04]
[1748166207029,21.90633231,171.06,171.03,119.04]
[1748166207836,22.04849388,171.04,171.03,84.02]
[1748166208035,22.04849388,171.04,171.03,119.04]
[1748166209651,40.69814274,171.04,171.03,84.02]
[1748166209814,40.69814274,171.04,171.03,158.38]
[1748166219042,40.69814274,171.04,170.93,82.9]
[1748166219258,40.69814274,171.04,170.94,74.36]
[1748166219259,21.90633231,170.96,170.94,74.36]
[1748166219471,18.79181043,171.0,170.94,157.26]
[1748166219628,21.90633231,170.97,170.95,35.02]
[1748166221029,21.90633231,170.98,170.95,35.02]
[1748166224847,18.79181043,171.0,170.95,35.02]
[1748166225057,153.00486863,171.08,170.95,56.92633231]
[1748166225356,21.90633231,171.02,170.96,21.90633231]
[1748166225541,21.90633231,171.02,170.97,35.02]
[1748166226453,21.90633231,171.01,170.97,35.02]
[1748166227630,21.90633231,171.01,170.98,84.04]
[1748166228959,21.90633231,171.01,170.98,166.94]
[1748166229741,21.90633231,171.01,170.99,39.34]
[1748166229946,21.90633231,171.01,171.0,35.02]
[1748166231163,0.14216157,171.03,171.0,35.02]
[1748166231338,21.90633231,171.01,171.0,35.02]
[1748166232263,0.14216157,171.0,170.99,39.34]
[1748166232436,22.04849388,171.0,170.99,74.36]
[1748166233244,22.04849388,171.0,170.99,39.34]
[1748166233439,21.90633231,171.0,170.99,74.36]
[1748166233652,21.90633231,171.01,170.99,74.36]
[1748166234456,21.90633231,171.0,170.99,74.36]
[1748166234657,22.04849388,171.0,170.99,74.36]
[1748166235469,62.60447505,171.0,170.99,39.34]
[1748166235643,0.14216157,170.99,170.98,84.04]
[1748166235838,22.04849388,170.99,170.98,158.4]
[1748166236044,22.04849388,170.99,170.98,84.04]
[1748166236264,22.04849388,170.99,170.98,158.4]
[1748166240764,18.79181043,171.03,170.98,158.4]
[1748166241068,21.90633231,171.01,170.98,158.4]
[1748166242567,21.90633231,171.0,170.98,158.4]
[1748166242980,26.0,171.04,170.98,263.20633231]
[1748166243147,21.90633231,171.06,171.01,21.90633231]
[1748166243482,21.90633231,171.07,171.02,35.02]
[1748166243769,26.14216157,171.09,171.02,139.82633231]
[1748166243964,21.90633231,171.07,171.02,139.82633231]
[1748166244142,0.14216157,171.11,171.03,21.90633231]
[1748166244349,21.90633231,171.1,171.04,96.26633231]
[1748166244757,21.90633231,171.1,171.05,21.90633231]
[1748166246554,21.90633231,171.1,171.04,96.26633231]
[1748166246740,21.90633231,171.09,171.04,74.36]
[1748166247367,21.90633231,171.09,171.04,96.26633231]
[1748166247970,0.14216157,171.08,170.98,311.1868]
[1748166248173,21.90633231,171.0,170.99,74.3]
[1748166250071,26.0,171.04,170.99,74.3]
[1748166250459,21.90633231,171.03,170.99,74.3]
[1748166250654,21.90633231,171.02,170.99,74.3]
[1748166251045,21.90633231,171.02,170.99,35.02]
[1748166251860,21.90633231,171.05,170.99,56.92633231]
[1748166252151,21.90633231,171.07,171.01,21.90633231]
[1748166252476,21.90633231,171.08,171.02,56.92633231]
[1748166252676,21.90633231,171.09,171.03,21.90633231]
[1748166253977,21.90633231,171.08,171.02,56.92633231]
[1748166254272,0.14216157,171.11,171.02,56.92633231]
[1748166254452,0.14216157,171.11,171.03,21.90633231]
[1748166254652,21.90633231,171.09,171.03,21.90633231]
[1748166254853,21.90633231,171.08,171.02,35.02]
[1748166255156,21.90633231,171.07,171.02,56.92633231]
[1748166255559,0.14216157,171.11,171.02,56.92633231]
[1748166255760,21.90633231,171.09,171.03,21.90633231]
[1748166256661,21.90633231,171.08,171.03,21.90633231]
[1748166257379,21.90633231,171.09,171.03,21.90633231]
[1748166257557,21.90633231,171.09,171.04,123.3]
[1748166257872,21.90633231,171.09,171.04,122.18]
[1748166258272,21.90633231,171.09,171.04,82.9]
[1748166259767,21.90633231,171.08,171.04,82.9]
[1748166261981,21.90633231,171.09,171.04,82.9]
[1748166262186,21.90633231,171.1,171.05,21.90633231]
[1748166262486,21.90633231,171.11,171.06,35.0]
[1748166262696,1.65436157,171.14,171.06,35.0]
[1748166262697,21.90633231,171.14,171.09,21.90633231]
[1748166262860,18.79181043,171.17,171.1,35.0]
[1748166263062,21.90633231,171.15,171.1,56.90633231]
[1748166263265,21.90633231,171.14,171.1,35.0]
[1748166263471,0.14216157,171.17,171.1,35.0]
[1748166263660,21.90633231,171.13,171.1,35.0]
[1748166264365,21.90633231,171.14,171.1,35.0]
[1748166266866,21.90633231,171.13,171.1,35.0]
[1748166267485,21.90633231,171.13,171.11,123.26]
[1748166267904,21.90633231,171.12,171.11,123.26]
[1748166268787,21.90633231,171.12,171.11,39.26]
[1748166268990,0.14216157,171.14,171.11,39.26]
[1748166269192,21.90633231,171.13,171.11,39.26]
[1748166269393,21.90633231,171.12,171.11,39.26]
[1748166270168,21.90633231,171.13,171.11,39.26]
[1748166270695,21.90633231,171.12,171.11,39.26]
[1748166271472,21.90633231,171.12,171.1,35.0]
[1748166271770,21.90633231,171.11,171.1,35.0]
[1748166274509,22.04849388,171.11,171.1,35.0]
[1748166275000,1.6051,171.12,171.1,35.0]
[1748166275172,26.0,171.13,171.1,35.0]
[1748166275372,21.90633231,171.11,171.1,35.0]
[1748166277492,21.90633231,171.11,171.1,158.2]
[1748166279391,0.14216157,171.12,171.1,158.2]
[1748166279392,26.0,171.13,171.1,158.2]
[1748166279594,21.90633231,171.11,171.1,158.2]
[1748166280202,26.0,171.15,171.1,74.22]
[1748166280514,21.90633231,171.14,171.1,157.12]
[1748166281679,18.79181043,171.21,171.13,21.90633231]
[1748166281900,21.90633231,171.2,171.14,56.90633231]
[1748166282110,21.90633231,171.19,171.15,35.0]
[1748166282576,1.5342,171.22,171.16,21.90633231]
[1748166282916,21.90633231,171.25,171.19,21.90633231]
[1748166283091,21.90633231,171.25,171.2,35.0]
[1748166283286,0.14216157,171.26,171.2,35.0]
[1748166283599,21.90633231,171.25,171.2,35.0]
[1748166284003,21.90633231,171.24,171.2,35.0]
[1748166284877,1.5342,171.27,171.2,35.0]
[1748166284878,21.90633231,171.23,171.2,35.0]
[1748166285079,18.79181043,171.26,171.2,35.0]
[1748166285297,21.90633231,171.22,171.2,35.0]
[1748166285495,0.14216157,171.26,171.2,56.90633231]
[1748166285702,21.90633231,171.26,171.21,21.90633231]
[1748166286421,21.90633231,171.26,171.2,56.90633231]
[1748166287611,21.90633231,171.22,171.21,123.16]
[1748166288511,0.14216157,171.25,171.21,123.16]
[1748166288813,21.90633231,171.23,171.21,123.16]
[1748166292105,21.90633231,171.24,171.21,123.16]
[1748166293827,0.14216157,171.25,171.21,123.16]
[1748166293828,21.90633231,171.22,171.21,123.16]
[1748166295224,0.04687103,171.28,171.21,61.10633231]
[1748166295527,0.04687103,171.28,171.21,39.2]
[1748166295697,21.95320334,171.28,171.23,21.90633231]
[1748166295905,21.95320334,171.28,171.21,39.2]
[1748166295906,21.90633231,171.27,171.24,34.98]
[1748166296092,21.90633231,171.27,171.25,74.18]
[1748166296304,21.90633231,171.26,171.25,74.18]
[1748166297601,22.04849388,171.26,171.25,158.1]
[1748166299308,1.70857103,171.28,171.25,158.1]
[1748166299510,23.61490334,171.28,171.25,158.1]
[1748166299835,21.90633231,171.27,171.25,158.1]
[1748166300330,23.61490334,171.28,171.25,158.1]
[1748166300528,1.70857103,171.28,171.25,158.1]
[1748166300730,0.04687103,171.28,171.25,158.1]
[1748166303918,21.90633231,171.29,171.25,158.1]
[1748166304717,44.79181043,171.32,171.25,180.00633231]
[1748166304917,26.0,171.32,171.26,21.90633231]
[1748166305111,47.90633231,171.32,171.26,21.90633231]
[1748166305318,21.90633231,171.33,171.27,21.90633231]
[1748166305550,21.90633231,171.33,171.28,34.98]
[1748166306310,0.14216157,171.36,171.29,21.90633231]
[1748166306512,21.90633231,171.33,171.28,139.78633231]
[1748166307519,21.90633231,171.34,171.28,139.78633231]
[1748166308253,26.14216157,171.36,171.28,139.78633231]
[1748166308415,21.90633231,171.34,171.29,21.90633231]
[1748166308620,21.90633231,171.35,171.3,21.90633231]
[1748166308935,21.90633231,171.31,171.3,82.9]
[1748166309246,21.90633231,171.33,171.28,139.78633231]
[1748166309427,21.90633231,171.35,171.29,21.90633231]
[1748166309630,21.90633231,171.35,171.29,104.80633231]
[1748166309942,21.90633231,171.34,171.29,104.80633231]
[1748166310252,26.14216157,171.38,171.3,21.90633231]
[1748166310425,21.90633231,171.36,171.31,74.14]
[1748166310859,21.90633231,171.34,171.31,74.14]
[1748166311031,21.90633231,171.35,171.31,74.14]
[1748166312639,21.90633231,171.32,171.31,74.14]
[1748166313328,21.90633231,171.33,171.31,74.14]
[1748166314039,21.90633231,171.32,171.31,74.14]
[1748166314342,21.90633231,171.32,171.31,39.18]
[1748166314528,21.90633231,171.32,171.31,74.14]
[1748166315117,21.90633231,171.33,171.31,74.14]
[1748166315322,0.14216157,171.36,171.31,74.14]
[1748166315633,21.90633231,171.34,171.31,74.14]
[1748166315830,0.14216157,171.36,171.31,74.14]
[1748166316135,21.90633231,171.34,171.31,74.14]
[1748166317219,0.14216157,171.38,171.31,74.14]
[1748166317521,21.90633231,171.35,171.31,74.14]
[1748166317924,21.90633231,171.34,171.31,74.14]
[1748166318143,21.90633231,171.32,171.31,74.14]
[1748166319550,18.79181043,171.37,171.31,74.14]
[1748166319720,21.90633231,171.32,171.31,74.14]
[1748166319920,21.90633231,171.33,171.31,74.14]
[1748166320352,21.90633231,171.33,171.32,83.88]
[1748166321340,21.90633231,171.35,171.32,83.88]
[1748166323250,26.0,171.38,171.32,83.88]
[1748166323443,6.67557103,171.43,171.32,105.78633231]
[1748166323651,21.90633231,171.38,171.32,105.78633231]
[1748166324031,21.90633231,171.37,171.32,83.88]
[1748166324351,21.90633231,171.37,171.32,105.78633231]
[1748166328075,26.0,171.39,171.33,21.90633231]
[1748166328278,21.90633231,171.38,171.34,34.96]
[1748166329066,21.90633231,171.37,171.34,34.96]
[1748166329435,27.5109,171.41,171.34,34.96]
[1748166329436,21.90633231,171.38,171.34,34.96]
[1748166329741,21.90633231,171.39,171.34,56.86633231]
[1748166330143,21.90633231,171.38,171.34,34.96]
[1748166330557,27.5109,171.41,171.34,34.96]
[1748166330755,21.90633231,171.38,171.34,34.96]
[1748166331466,21.90633231,171.37,171.34,34.96]
[1748166331963,27.5109,171.41,171.34,34.96]
[1748166332150,21.90633231,171.38,171.34,34.96]
[1748166333860,27.5109,171.41,171.34,34.96]
[1748166334036,21.90633231,171.38,171.34,34.96]
[1748166334650,21.90633231,171.37,171.34,34.96]
[1748166335470,21.90633231,171.38,171.34,34.96]
[1748166336053,0.04687103,171.43,171.37,21.90633231]
[1748166336371,0.04687103,171.43,171.38,25.11614522]
[1748166336573,0.04687103,171.43,171.42,47.90633231]
[1748166337550,0.04687103,171.43,171.42,170.90633231]
[1748166340268,0.04687103,171.43,171.42,47.90633231]
[1748166341945,0.04687103,171.43,171.42,26.0]
[1748166342149,0.04687103,171.43,171.42,47.90633231]
[1748166343266,0.04687103,171.43,171.42,34.94]
[1748166344858,0.04687103,171.43,171.42,56.84633231]
[1748166346152,0.04687103,171.43,171.42,34.94]
[1748166346753,0.04687103,171.43,171.42,56.84633231]
[1748166347548,0.04687103,171.43,171.42,157.88]
[1748166348955,21.90633231,171.47,171.42,157.88]
[1748166349475,21.90633231,171.47,171.42,74.06]
[1748166350475,21.90633231,171.47,171.42,34.94]
[1748166351155,21.90633231,171.47,171.42,56.84633231]
[1748166351778,21.90633231,171.48,171.42,56.84633231]
[1748166352073,1.77966157,171.49,171.42,34.94]
[1748166352252,21.90633231,171.47,171.42,56.84633231]
[1748166352680,21.90633231,171.48,171.42,56.84633231]
[1748166352979,21.90633231,171.48,171.43,21.90633231]
[1748166353378,26.0,171.5,171.44,21.90633231]
[1748166353567,47.90633231,171.5,171.45,21.90633231]
[1748166354156,21.90633231,171.49,171.44,21.90633231]
[1748166354680,0.14216157,171.51,171.44,21.90633231]
[1748166354892,21.90633231,171.51,171.45,21.90633231]
[1748166355372,21.90633231,171.5,171.44,21.90633231]
[1748166356073,21.90633231,171.5,171.42,34.94]
[1748166356281,21.90633231,171.5,171.44,21.90633231]
[1748166356873,21.90633231,171.51,171.46,21.90633231]
[1748166357079,26.0,171.52,171.47,34.92]
[1748166357281,21.90633231,171.51,171.47,34.92]
[1748166357578,21.90633231,171.51,171.48,122.94]
[1748166357777,21.90633231,171.52,171.48,122.94]
[1748166357981,1.6491,171.53,171.48,61.02633231]
[1748166358200,21.90633231,171.54,171.49,21.90633231]
[1748166358365,21.90633231,171.54,171.48,39.12]
[1748166358366,21.90633231,171.54,171.48,21.90633231]
[1748166358679,21.90633231,171.53,171.47,34.92]
[1748166358881,21.90633231,171.52,171.47,56.82633231]
[1748166359887,21.90633231,171.52,171.48,34.92]
[1748166360095,21.90633231,171.52,171.49,34.92]
[1748166360307,26.04687103,171.55,171.49,34.92]
[1748166360472,21.90633231,171.53,171.49,34.92]
[1748166360672,21.90633231,171.54,171.49,56.82633231]
[1748166361071,0.04687103,171.55,171.49,56.82633231]
[1748166361386,21.95320334,171.55,171.49,56.82633231]
[1748166361713,21.90633231,171.54,171.49,34.92]
[1748166362198,21.90633231,171.54,171.49,56.82633231]
[1748166364607,21.90633231,171.53,171.49,117.82]
[1748166364769,21.90633231,171.52,171.49,117.82]
[1748166365392,21.90633231,171.53,171.49,117.82]
[1748166365891,21.90633231,171.5,171.49,82.9]
[1748166366096,22.04849388,171.5,171.49,34.92]
[1748166366301,21.90633231,171.5,171.49,34.92]
[1748166367592,22.04849388,171.5,171.49,157.8]
[1748166367785,0.14216157,171.5,171.49,157.8]
[1748166367983,22.04849388,171.5,171.49,157.8]
[1748166368199,21.90633231,171.5,171.49,157.8]
[1748166371295,21.90633231,171.5,171.49,34.92]
[1748166371593,0.04687103,171.55,171.49,34.92]
[1748166371594,0.04687103,171.55,171.49,78.73266462]
[1748166371797,0.04687103,171.55,171.54,21.90633231]
[1748166372093,0.04687103,171.55,171.54,56.82633231]
[1748166372788,0.04687103,171.55,171.48,6.1765]
[1748166372789,21.95320334,171.55,171.48,6.1765]
[1748166372985,21.90633231,171.54,171.49,34.92]
[1748166373702,21.90633231,171.54,171.49,56.82633231]
[1748166374399,21.90633231,171.54,171.49,34.92]
[1748166375101,23.40853231,171.54,171.47,26.0]
[1748166375302,21.90633231,171.53,171.48,56.82633231]
[1748166376406,21.90633231,171.54,171.48,56.82633231]
[1748166376576,0.04687103,171.55,171.5,21.90633231]
[1748166377592,0.04687103,171.55,171.51,122.88]
[1748166377900,0.04687103,171.55,171.53,21.90633231]
[1748166380285,0.04687103,171.55,171.54,21.90633231]
[1748166382001,0.04687103,171.55,171.54,47.90633231]
[1748166384401,0.04687103,171.55,171.54,82.80633231]
[1748166385150,0.04687103,171.55,171.54,56.80633231]
[1748166385283,0.14216157,171.69,171.63,21.90633231]
[1748166385609,21.90633231,171.69,171.64,34.9]
[1748166386189,1.5133,171.7,171.64,34.9]
[1748166386392,21.90633231,171.69,171.64,56.80633231]
[1748166387005,1.5133,171.7,171.64,56.80633231]
[1748166387203,1.5133,171.7,171.65,21.90633231]
[1748166387493,1.5133,171.7,171.67,21.90633231]
[1748166388096,0.14216157,171.72,171.67,21.90633231]
[1748166388294,21.90633231,171.72,171.67,21.90633231]
[1748166388497,22.04849388,171.73,171.68,21.90633231]
[1748166388703,22.04849388,171.73,171.69,34.9]
[1748166389708,21.90633231,171.72,171.69,34.9]
[1748166390720,22.04849388,171.73,171.69,34.9]
[1748166391130,0.14216157,171.73,171.69,34.9]
[1748166391298,22.04849388,171.73,171.69,34.9]
[1748166391492,1.6502,171.79,171.7,21.90633231]
[1748166391794,44.79181043,171.78,171.7,21.90633231]
[1748166392015,44.79181043,171.78,171.71,21.90633231]
[1748166392321,22.04849388,171.78,171.72,60.96633231]
[1748166392525,22.04849388,171.78,171.72,39.06]
[1748166392526,21.90633231,171.77,171.72,39.06]
[1748166393105,21.90633231,171.75,171.66,83.76]
[1748166393324,21.90633231,171.75,171.69,21.90633231]
[1748166393826,21.90633231,171.75,171.67,73.92]
[1748166393827,0.14216157,171.78,171.7,21.90633231]
[1748166394027,21.90633231,171.75,171.7,21.90633231]
[1748166394325,0.14216157,171.78,171.71,73.92]
[1748166394326,21.90633231,171.76,171.71,73.92]
[1748166394824,21.90633231,171.75,171.71,73.92]
[1748166395129,0.14216157,171.78,171.71,95.82633231]
[1748166395519,18.79181043,171.78,171.71,95.82633231]
[1748166395719,21.90633231,171.77,171.71,95.82633231]
[1748166396436,21.90633231,171.77,171.72,21.90633231]
[1748166396829,21.90633231,171.77,171.71,95.82633231]
[1748166397136,21.90633231,171.76,171.71,99.92]
[1748166397311,0.14216157,171.78,171.72,21.90633231]
[1748166397515,21.90633231,171.77,171.72,47.90633231]
[1748166398317,21.90633231,171.77,171.72,21.90633231]
[1748166398736,21.90633231,171.76,171.71,95.82633231]
[1748166398935,21.90633231,171.76,171.71,73.92]